fUSD/lending_fUSD_20240319
["ID","MTS","AMOUNT","RATE_DAILY","PERIOD"]
[319507093,1710811846752,-151.0,0.00040335,14]
[319507094,1710811846761,-151.0,0.00040335,14]
[319507095,1710811846770,-539.600165,0.00040335,14]
[319507096,1710811846780,-539.600165,0.00040335,14]
[319507097,1710811846789,-497.431469,0.00040335,14]
[319507098,1710811846798,-497.431469,0.00040335,14]
[319507099,1710811846808,-151.0,0.00040335,7]
[319507100,1710811846817,-151.0,0.00040335,14]
[319507101,1710811846826,-160.006172,0.00040335,14]
[319507102,1710811846835,-160.006172,0.00040335,14]
[319507103,1710811846843,-340.740116,0.00040335,14]
[319507104,1710811846853,-340.740116,0.00040335,14]
[319507105,1710811846862,-550.209218,0.00040335,14]
[319507106,1710811846871,-550.209218,0.00040335,14]
[319507107,1710811846883,-197.738849,0.00040335,14]
[319507108,1710811846893,-197.738849,0.00040335,14]
[319507109,1710811846902,-157.765705,0.00040335,14]
[319507110,1710811846911,-151.0,0.00040335,14]
[319507111,1710811846920,-157.765705,0.00040335,14]
[319507112,1710811846930,-100000.0,0.00040336,5]
[319507113,1710811846939,-155.0,0.0004037,2]
[319507114,1710811846949,-166.253587,0.00040407,7]
[319507115,1710811846960,-372.67,0.00040433,2]
[319507116,1710811846970,-151.031909,0.00040498,20]
[319507117,1710811846979,-260.0,0.000405,30]
[319507118,1710811846989,-2110.0,0.000405,15]
[319507119,1710811846997,-500.0,0.000406,15]
[319507120,1710811847007,-150.0,0.000406,15]
[319507121,1710811847017,-1000.0,0.000406,15]
[319507122,1710811847026,-801.0,0.00040624,28]
[319507123,1710811847036,-684400.0,0.0004069,120]
[319507124,1710811847045,-151.0,0.0004069,14]
[319507125,1710811847055,-166.80703,0.0004069,14]
[319507126,1710811847064,-539.600165,0.0004069,14]
[319507127,1710811847073,-539.600165,0.0004069,14]
[319507128,1710811847083,-497.431469,0.0004069,14]
[319507129,1710811847257,-497.431469,0.0004069,14]
[319507130,1710811847266,-151.0,0.0004069,14]
[319507131,1710811847276,-160.006172,0.0004069,14]
[319507132,1710811847285,-160.006167,0.0004069,14]
[319507133,1710811847295,-340.740116,0.0004069,14]
[319507134,1710811847304,-340.740111,0.0004069,14]
[319507135,1710811847313,-550.209218,0.0004069,14]
[319507136,1710811847323,-550.209228,0.0004069,14]
[319507137,1710811847332,-197.738849,0.0004069,14]
[319507138,1710811847342,-197.738847,0.0004069,14]
[319507139,1710811847351,-157.765705,0.0004069,14]
[319507140,1710811847360,-151.0,0.0004069,14]
[319507141,1710811847369,-157.765702,0.0004069,14]
[319507142,1710811847379,-151.11651377,0.00040693,9]
[319507143,1710811847390,-2609.0,0.00040798,56]
[319507144,1710811847399,-6946.81788458,0.00040844,14]
[319507145,1710811847409,-7909.99,0.00040847,82]
[319507146,1710811847419,-387.889,0.0004088,7]
[319507147,1710811847429,-8000.0,0.00040885,60]
[319507148,1710811847439,-29999.99999901,0.000409,30]
[319507149,1710811847450,-166.253587,0.00040992,7]
[319507150,1710811847459,-186.161043,0.00040992,7]
[319507151,1710811847469,-153.333335,0.00040992,7]
[319507152,1710811847479,-185.165175,0.00040992,7]
[319507153,1710811847488,-200000.0,0.00041,41]
[319507154,1710811847498,-200000.0,0.00041,31]
[319507155,1710811847507,-18474.0,0.00041,60]
[319507156,1710811847517,-200.0,0.00041,41]
[319507157,1710811847528,-1002.0,0.00041,100]
[319507158,1710811847537,-260.0,0.00041,30]
[319507159,1710811847547,-1567.12,0.00041,120]
[319507160,1710811847556,-2110.0,0.00041,15]
[319507161,1710811847566,-151.0,0.00041,14]
[319507162,1710811847575,-151.0,0.00041,14]
[319507163,1710811847584,-539.600165,0.00041,14]
[319507164,1710811847593,-539.600169,0.00041,14]
[319507165,1710811847603,-497.431469,0.00041,14]
[319507166,1710811847612,-497.431466,0.00041,14]
[319507167,1710811847622,-150.0,0.0004105,2]
[319507168,1710811847633,-2651.15671123,0.00041079,120]
[319507169,1710811847643,-718.0982,0.0004109,7]
[319507170,1710811847653,-1000.0,0.00041094,120]
[319507171,1710811847662,-165.04,0.00041096,2]
[319507172,1710811847671,-22205.84,0.00041096,5]
[319507173,1710811847681,-183.0,0.00041096,2]
[319507174,1710811847691,-161.15,0.00041096,10]
[319507175,1710811847701,-520.37128493,0.00041096,14]
[319507176,1710811847710,-500.0,0.00041096,30]
[319507177,1710811847719,-13979.46093885,0.000411,60]
[319507178,1710811847728,-150.1,0.000411,2]
[319507179,1710811847737,-995.8,0.0004127,2]
[319507180,1710811847747,-801.0,0.00041436,28]
[319507181,1710811847756,-260.0,0.000415,30]
[319507182,1710811847766,-267.839999,0.000415,71]
[319507183,1710811847776,-2110.0,0.000415,15]
[319507184,1710811847785,-500.0,0.00041712,30]
[319507185,1710811847794,-155.0,0.0004174,2]
[319507186,1710811847803,-1000.0,0.000418,120]
[319507187,1710811847813,-378.74302612,0.00041817,10]
[319507188,1710811847823,-4000.0,0.0004188,30]
[319507189,1710811847832,-200000.0,0.00042,42]
[319507190,1710811847842,-200000.0,0.00042,32]
[319507191,1710811847851,-8737.0891701,0.00042,2]
[319507192,1710811847860,-200.0,0.00042,120]
[319507193,1710811847870,-1000.0,0.00042,120]
[319507194,1710811847879,-260.0,0.00042,30]
[319507195,1710811847890,-20000.0,0.00042,120]
[319507196,1710811847899,-1000.0,0.00042,2]
[319507197,1710811847909,-316.67331853,0.00042,2]
[319507198,1710811847917,-2110.0,0.00042,15]
[319507199,1710811847927,-1298.91151828,0.0004201,2]
[319507200,1710811847936,-151.11651377,0.00042016,14]
[319507201,1710811847946,-150.0,0.0004205,60]
[319507202,1710811847955,-801.0,0.00042249,28]
[319507203,1710811847964,-749.7343797,0.00042294,2]
[319507204,1710811847974,-344.2666167,0.00042294,2]
[319507205,1710811847983,-329.8831274,0.00042294,2]
[319507206,1710811847993,-20106.5629787,0.00042294,2]
[319507207,1710811848002,-150.0,0.00042322,2]
[319507208,1710811848011,-150.0,0.00042322,2]
[319507209,1710811848021,-150.0,0.00042322,2]
[319507210,1710811848031,-300.0,0.00042322,10]
[319507211,1710811848040,-302.71338657,0.00042322,10]
[319507212,1710811848050,-150.0,0.00042322,2]
[319507213,1710811848064,-300.0,0.00042322,10]
[319507214,1710811848073,-150.0,0.00042322,2]
[319507215,1710811848083,-150.0,0.00042322,2]
[319507216,1710811848092,-150.0,0.00042322,30]
[319507217,1710811848102,-150.0,0.00042322,30]
[319507218,1710811848111,-150.0,0.00042322,30]
[319507219,1710811848121,-150.0,0.00042322,30]
[319507220,1710811848134,-150.0,0.00042322,30]
[319507221,1710811848145,-1199063.116521,0.00042323,120]
[319507222,1710811848155,-500.0,0.00042338,30]
[319507223,1710811848163,-995.8,0.0004248,2]
[319507224,1710811848174,-150.0,0.00042499,2]
[319507225,1710811848183,-150.24151873,0.00042499,2]
[319507226,1710811848193,-150.0,0.00042499,2]
[319507227,1710811848202,-150.0,0.00042499,30]
[319507228,1710811848212,-150.0,0.00042499,30]
[319507229,1710811848221,-150.0,0.00042499,30]
[319507230,1710811848231,-150.0,0.00042499,30]
[319507231,1710811848240,-150.0,0.00042499,30]
[319507232,1710811848250,-260.0,0.000425,30]
[319507233,1710811848260,-2110.0,0.000425,15]
[319507234,1710811848269,-372.67,0.00042697,2]
[319507235,1710811848279,-150.0,0.00042899,2]
[319507236,1710811848288,-300.0,0.00042899,10]
[319507237,1710811848298,-150.0,0.00042899,2]
[319507238,1710811848308,-150.0,0.00042899,2]
[319507239,1710811848317,-150.0,0.00042899,30]
[319507240,1710811848326,-150.0,0.00042899,30]
[319507241,1710811848336,-150.0,0.00042899,30]
[319507242,1710811848346,-150.0,0.00042899,30]
[319507243,1710811848355,-150.0,0.00042899,30]
[319507244,1710811848364,-30072.74523311,0.000429,30]
[319507245,1710811848373,-20000.0,0.000429,30]
[319507246,1710811848387,-500.0,0.00042973,30]
[319507247,1710811848396,-150.0,0.00042998,30]
[319507248,1710811848405,-150.0,0.00042998,30]
[319507249,1710811848415,-150.0,0.00042998,30]
[319507250,1710811848424,-150.0,0.00042998,30]
[319507251,1710811848433,-150.0,0.00042998,30]
[319507252,1710811848443,-150.0,0.00042999,2]
[319507253,1710811848452,-150.0,0.00042999,2]
[319507254,1710811848462,-276.36059029,0.00042999,2]
[319507255,1710811848472,-150.0,0.00042999,30]
[319507256,1710811848481,-150.0,0.00042999,30]
[319507257,1710811848491,-150.0,0.00042999,30]
[319507258,1710811848501,-150.0,0.00042999,30]
[319507259,1710811848511,-200000.0,0.00043,43]
[319507260,1710811848521,-200000.0,0.00043,23]
[319507261,1710811848530,-1000.0,0.00043,10]
[319507262,1710811848540,-1000.0,0.00043,120]
[319507263,1710811848550,-260.0,0.00043,60]
[319507264,1710811848559,-150.0,0.00043,10]
[319507265,1710811848569,-30000.0,0.00043,120]
[319507266,1710811848579,-500.0,0.00043,5]
[319507267,1710811848588,-200.0,0.00043,43]
[319507268,1710811848597,-2110.0,0.00043,15]
[319507269,1710811848606,-150.0,0.0004305,60]
[319507270,1710811848616,-258.32288317,0.0004306,7]
[319507271,1710811848625,-801.0,0.00043061,28]
[319507272,1710811848637,-1121.78862799,0.000431,12]
[319507273,1710811848647,-6946.81788458,0.00043187,17]
[319507274,1710811848656,-1057.59607607,0.00043321,5]
[319507275,1710811848666,-1224.35634363,0.00043321,5]
[319507276,1710811848675,-151.11651377,0.0004334,19]
[319507277,1710811848685,-260.0,0.000435,60]
[319507278,1710811848694,-2110.0,0.000435,15]
[319507279,1710811848703,-229.38,0.00043562,2]
[319507280,1710811848712,-500.0,0.00043618,30]
[319507282,1710811848722,-995.8,0.0004369,2]
[319507283,1710811848731,-453.36950199,0.000438,30]
[319507284,1710811848741,-161.15,0.00043836,10]
[319507285,1710811848751,-500.0,0.00043836,13]
[319507286,1710811848760,-749.7343797,0.0004397,2]
[319507287,1710811848770,-344.2666167,0.0004397,2]
[319507288,1710811848780,-1023.79521773,0.0004399,4]
[319507289,1710811848790,-200000.0,0.00044,44]
[319507290,1710811848799,-200000.0,0.00044,34]
[319507291,1710811848809,-12625.0,0.00044,2]
[319507292,1710811848819,-10320.56003171,0.00044,30]
[319507293,1710811848829,-100514.75608271,0.00044,32]
[319507294,1710811848838,-60000.0,0.00044,4]
[319507295,1710811848848,-1000.0,0.00044,120]
[319507296,1710811848857,-260.0,0.00044,60]
[319507297,1710811848866,-20000.0,0.00044,5]
[319507298,1710811848878,-627.0,0.00044,90]
[319507299,1710811848891,-150.0,0.00044,10]
[319507300,1710811848901,-18099.48704818,0.00044,30]
[319507301,1710811848911,-38329.01600497,0.00044,2]
[319507302,1710811848920,-2110.0,0.00044,15]
[319507303,1710811848930,-150.0,0.0004405,60]
[319507304,1710811848939,-627.0,0.0004411,90]
[319507305,1710811848949,-329.8831274,0.00044242,2]
[319507306,1710811848959,-500.0,0.00044272,30]
[319507307,1710811848968,-627.0,0.00044384,90]
[319507308,1710811848979,-8476.5,0.00044384,102]
[319507309,1710811848989,-259.78,0.000445,60]
[319507310,1710811848999,-2110.0,0.000445,15]
[319507311,1710811849008,-1376.79532728,0.00044558,2]
[319507312,1710811849018,-899.14607009,0.0004465,2]
[319507313,1710811849028,-1426.35884504,0.0004465,2]
[319507314,1710811849038,-627.0,0.00044658,90]
[319507315,1710811849048,-151.11651377,0.00044664,24]
[319507316,1710811849058,-14918.35553674,0.000448,2]
[319507317,1710811849067,-378.74302612,0.00044858,12]
[319507318,1710811849077,-216.62636308,0.000449,120]
[319507319,1710811849089,-26117.83635606,0.000449,30]
[319507320,1710811849099,-995.8,0.000449,2]
[319507321,1710811849108,-566.31707294,0.000449,2]
[319507322,1710811849117,-627.0,0.00044932,90]
[319507323,1710811849127,-500.0,0.00044936,30]
[319507324,1710811849143,-372.67,0.00044961,2]
[319507325,1710811849154,-17984.9519765,0.00044969,2]
[319507326,1710811849163,-5151.1747307,0.0004498,2]
[319507327,1710811849174,-5000.0,0.00044986,4]
[319507328,1710811849183,-200000.0,0.00045,35]
[319507329,1710811849192,-200000.0,0.00045,35]
[319507330,1710811849202,-200.0,0.00045,45]
[319507331,1710811849211,-7638.73151302,0.00045,90]
[319507332,1710811849221,-139139.26918429,0.00045,45]
[319507333,1710811849230,-27833.82010382,0.00045,30]
[319507334,1710811849239,-130224.46176208,0.00045,2]
[319507335,1710811849250,-2000.031874,0.00045,30]
[319507336,1710811849259,-32997.61146948,0.00045,120]
[319507337,1710811849269,-32679.0,0.00045,120]
[319507338,1710811849278,-1000.0,0.00045,120]
[319507339,1710811849288,-250.0,0.00045,60]
[319507340,1710811849298,-790.02252468,0.00045,4]
[319507341,1710811849308,-1000.0,0.00045,120]
[319507342,1710811849317,-3000.0,0.00045,120]
[319507343,1710811849328,-300.0,0.00045,30]
[319507344,1710811849340,-50000.0,0.00045,30]
[319507345,1710811849350,-2000.0,0.00045,60]
[319507346,1710811849360,-4493.83071214,0.00045,120]
[319507347,1710811849417,-250.23355851,0.00045,120]
[319507348,1710811850682,-150.99,0.00029292,2]
[319507349,1710811850692,-151.0,0.00032064,7]
[319507350,1710811850702,-172.31851392,0.00034316,2]
[319507351,1710811850712,-154.482573,0.00038,7]
[319507352,1710811850721,-151.188156,0.00038,7]
[319507353,1710811850731,-151.188156,0.00039,14]
[319507354,1710811850741,-151.188156,0.0003934,14]
[319507355,1710811850750,-151.188156,0.0004,14]
[319507356,1710811850760,-255.93572935,0.00045,120]
[319507357,1710811850769,-150.0,0.00045,10]
[319507358,1710811850779,-5000.0,0.00045,60]
[319507359,1710811850788,-320.61,0.00045,120]
[319507360,1710811850798,-200.0,0.00045,120]
[319507361,1710811850807,-191.92000906,0.00045,15]
[319507362,1710811850817,-2110.0,0.00045,15]
[319507363,1710811850827,-7422.1201178,0.0004514,30]
[319507364,1710811850874,-1327.335924,0.0004514,30]
[319507365,1710811851096,-151.188156,0.0004,14]
[319507366,1710811851107,-845.38973117,0.0004514,30]
[319507367,1710811851119,-261.95474972,0.0004514,30]
[319507368,1710811851133,-334.22388958,0.0004514,30]
[319507369,1710811851146,-2946.99525649,0.0004514,30]
[319507370,1710811851158,-2984.63206231,0.0004514,30]
[319507371,1710811851170,-3618.29724905,0.0004514,30]
[319507372,1710811851182,-7576.86321293,0.0004514,30]
[319507373,1710811851194,-22963.07172529,0.0004514,30]
[319507374,1710811851242,-434.00249956,0.0004514,30]
[319507375,1710811851397,-263.664,0.00033427,2]
[319507376,1710811851407,-152.52034581,0.000369,2]
[319507377,1710811851418,-151.188156,0.00040007,14]
[319507378,1710811851428,-151.188156,0.00040335,14]
[319507379,1710811851439,-84569.8351821,0.0004514,30]
[319507380,1710811851449,-627.0,0.00045205,90]
[319507381,1710811851459,-250.0,0.000455,120]
[319507382,1710811851468,-2110.0,0.000455,15]
[319507383,1710811851478,-6946.81788458,0.00045529,20]
[319507384,1710811851488,-150.0,0.00045589,10]
[319507385,1710811851499,-500.0,0.0004561,30]
[319507386,1710811851509,-151.11651377,0.00045987,29]
[319507387,1710811851519,-200000.0,0.00046,46]
[319507388,1710811851528,-308.49600419,0.00046,3]
[319507389,1710811851539,-1000.0,0.00046,30]
[319507390,1710811851549,-150.85808432,0.00046,14]
[319507391,1710811851562,-250.0,0.00046,120]
[319507392,1710811851572,-1000.0,0.00046,120]
[319507393,1710811851583,-150.0,0.00046,10]
[319507394,1710811851594,-2110.0,0.00046,15]
[319507395,1710811851605,-627.0,0.00046027,90]
[319507396,1710811851617,-995.8,0.0004611,2]
[319507397,1710811851627,-339.62646756,0.00046294,30]
[319507398,1710811851641,-250.0,0.000465,120]
[319507399,1710811851651,-2110.0,0.000465,15]
[319507400,1710811851662,-28400.18670433,0.00046575,12]
[319507401,1710811851675,-1327.72742621,0.00046575,12]
[319507402,1710811851687,-9954.36665083,0.00046575,12]
[319507403,1710811851708,-151.188156,0.0004069,14]
[319507404,1710811851718,-321.811844,0.00046575,12]
[319507405,1710811851730,-341.55000001,0.00046575,12]
[319507406,1710811851743,-44072.28737462,0.00046575,12]
[319507407,1710811851753,-161.15,0.00046575,120]
[319507408,1710811851762,-1057.59607607,0.0004661,8]
[319507409,1710811851771,-1224.35634363,0.0004661,8]
[319507410,1710811851783,-5300.0,0.0004688,26]
[319507411,1710811851793,-7000.0,0.00046933,2]
[319507412,1710811851803,-7784.74531625,0.00047,47]
[319507413,1710811851815,-26569.38747854,0.00047,47]
[319507414,1710811852052,-151.188156,0.00029205,7]
[319507415,1710811852063,-151.188156,0.00032064,7]
[319507416,1710811852073,-151.188156,0.00038,7]
[319507417,1710811852082,-415.0023731,0.000399,31]
[319507418,1710811852096,-607.93692168,0.00047,47]
[319507419,1710811852178,-150.08597,0.00028591,2]
[319507420,1710811852187,-496.23960354,0.00047,47]
[319507421,1710811852755,-397.73964472,0.00029204,2]
[319507422,1710811852764,-922.7,0.000324,2]
[319507423,1710811852774,-150.0,0.000324,2]
[319507424,1710811852783,-346.87,0.000324,2]
[319507425,1710811852792,-922.7,0.000344,2]
[319507426,1710811852801,-150.0,0.000344,2]
[319507427,1710811852810,-150.0,0.000344,2]
[319507428,1710811852819,-346.87,0.000344,2]
[319507429,1710811852828,-151.188156,0.00039,14]
[319507430,1710811852837,-151.188156,0.0003934,14]
[319507431,1710811852846,-164541.69067999,0.00047,47]
[319507432,1710811852855,-2417.22367594,0.00047,120]
[319507433,1710811852864,-2892.83651607,0.00047,14]
[319507434,1710811852873,-890.09324172,0.00047,120]
[319507435,1710811852882,-250.0,0.00047,120]
[319507436,1710811852895,-1000.0,0.00047,120]
[319507437,1710811852904,-177.3,0.00047,120]
[319507438,1710811852914,-4272.87489608,0.00047,30]
[319507439,1710811852923,-150.0,0.00047,10]
[319507440,1710811852932,-2110.0,0.00047,15]
[319507441,1710811852942,-372.67,0.00047225,2]
[319507442,1710811852951,-151.11651377,0.00047311,34]
[319507443,1710811852960,-995.8,0.0004732,2]
[319507444,1710811852970,-250.0,0.000475,120]
[319507445,1710811852978,-5222.29743596,0.000475,5]
[319507446,1710811852988,-7800.11740625,0.000475,90]
[319507447,1710811852997,-2110.0,0.000475,15]
[319507448,1710811853007,-5113.36088575,0.000476,2]
[319507449,1710811853016,-627.0,0.00047868,90]
[319507450,1710811853026,-6946.81788458,0.00047872,23]
[319507451,1710811853036,-378.74302612,0.00047899,13]
[319507452,1710811853046,-152.83842325,0.000479,76]
[319507453,1710811853056,-9040.0,0.0004792,117]
[319507454,1710811853070,-749.7343797,0.00047967,2]
[319507455,1710811853080,-749.7343797,0.00047967,2]
[319507456,1710811853089,-344.2666167,0.00047967,2]
[319507457,1710811853099,-344.2666167,0.00047967,2]
[319507458,1710811853109,-329.8831274,0.00047967,2]
[319507459,1710811853119,-329.8831274,0.00047967,2]
[319507460,1710811853128,-15863.3409743,0.00047967,2]
[319507461,1710811853142,-3505.86697516,0.00047999,3]
[319507462,1710811853151,-201836.43445779,0.00047999,5]
[319507463,1710811853163,-851.325,0.00047999,5]
[319507464,1710811853175,-6541.3,0.00047999,5]
[319507465,1710811853204,-270.06130344,0.00029204,2]
[319507466,1710811853215,-452.11454927,0.00030958,7]
[319507467,1710811853226,-519.61766235,0.00030958,7]
[319507468,1710812224089,258.07404195,0.00023224,100]
[319507469,1710812378255,150.0,0.00011754,2]
[319507470,1710812378287,255.10452478,0.00011754,2]
[319507471,1710812378309,1406.48888872,0.00011754,2]
[319507475,1710812601537,7178.30808765,0.00014139,5]
[319507476,1710812615458,4193.01180383,0.0001414,5]
[319507480,1710812759401,-406.97669586,0.00011915,2]
[319507481,1710812830453,150.0,0.00011808,2]
[319507482,1710812830472,150.0,0.00011808,2]
[319507483,1710812830503,150.0,0.00011808,2]
[319507484,1710812830523,150.0,0.00011808,2]
[319507485,1710812830543,150.0,0.00011808,2]
[319507486,1710812830565,1507.57752457,0.00011808,2]
[319507487,1710812831089,-535.3809211,0.00011907,2]
[319507488,1710812831112,-151.59750935,0.00011908,2]
[319507489,1710812835101,-2164.097004,0.00011907,2]
[319507490,1710812835123,-1947.11240737,0.00011908,2]
[319507491,1710812948125,-2343.16159328,0.00011896,2]
[319507492,1710812948144,-185.89755244,0.00011897,2]
[319507493,1710812949088,-313.15687623,0.00011897,2]
[319507494,1710812949108,-277.05147729,0.00011897,2]
[319507495,1710812949129,-3062.02328033,0.00011897,2]
[319507496,1710812949148,-529.37904197,0.00011898,2]
[319507497,1710812949168,-3359.13045759,0.00011898,2]
[319507498,1710812949187,-534.12503528,0.00011898,2]
[319507499,1710812949211,-259.03817803,0.00011898,2]
[319507500,1710812949237,-1053.4426883,0.00011899,2]
[319507501,1710812949257,-155.0,0.00011899,2]
[319507502,1710812949277,-522.56926041,0.000119,2]
[319507503,1710812949298,-776.0493619,0.00011901,2]
[319507504,1710812949319,-20194.78034267,0.00011901,2]
[319507505,1710812952088,-9156.68122257,0.00011901,2]
[319507506,1710812957162,-5659.69693419,0.00011901,2]
[319507507,1710812957186,-150.0,0.00011902,2]
[319507508,1710812957211,-180.12190636,0.00011907,2]
[319507509,1710812957232,-162.01333495,0.00011911,2]
[319507510,1710812957254,-845.8650245,0.00011912,2]
[319507511,1710812969086,-541.26879686,0.00011899,2]
[319507512,1710812969106,-499.05442867,0.00011899,2]
[319507513,1710812969124,-211.81970119,0.00011899,2]
[319507514,1710812969142,-529.88040581,0.000119,2]
[319507515,1710812969163,-155.30115519,0.00011911,2]
[319507516,1710812969181,-60.71089514,0.00011912,2]
[319507517,1710812969201,-150.0,0.00012,2]
[319507518,1710812969222,-235.25,0.00012,2]
[319507519,1710812969243,-370.63,0.00012025,2]
[319507520,1710812969263,-2716.7,0.00013287,2]
[319507521,1710812969282,-250.0,0.0001334,2]
[319507522,1710812969303,-159.06,0.00013358,2]
[319507523,1710812969321,-524.01,0.00013376,2]
[319507524,1710812969339,-321.64982254,0.00013427,2]
[319507539,1710813031787,-776.0493619,0.00013375,2]
[319507540,1710813031796,-2055.14312773,0.00013375,2]
[319507541,1710813031806,-499.99,0.00013376,2]
[319507542,1710813031815,-3359.13045759,0.00013426,2]
[319507543,1710813031824,-1514.40017746,0.00013427,2]
[319507544,1710813031834,-150.0,0.00013485,2]
[319507545,1710813031843,-183.3,0.00013515,2]
[319507546,1710813031852,-164.66,0.00013558,2]
[319507547,1710813031861,-164.66,0.00013659,2]
[319507548,1710813031870,-250.0,0.00013699,2]
[319507549,1710813031879,-200.0,0.00013699,2]
[319507550,1710813031888,-192.28,0.00013727,2]
[319507551,1710813031898,-1905.69,0.00013757,2]
[319507552,1710813031907,-164.66,0.0001376,2]
[319507553,1710813031917,-192.28,0.00013778,2]
[319507554,1710813031926,-500.0,0.00013813,2]
[319507555,1710813031935,-150.99,0.00013813,2]
[319507556,1710813031944,-518.96,0.00013813,2]
[319507557,1710813031953,-192.28,0.00013828,2]
[319507558,1710813031962,-164.66,0.00013861,2]
[319507559,1710813031972,-192.28,0.00013879,2]
[319507560,1710813031982,-192.28,0.00013929,2]
[319507561,1710813031991,-162.37,0.0001395,2]
[319507562,1710813032002,-164.66,0.00013962,2]
[319507563,1710813032011,-192.28,0.0001398,2]
[319507564,1710813032021,-406.20702838,0.0001403,2]
[319507565,1710813032030,-192.28,0.00014031,2]
[319507566,1710813032040,-164.66,0.00014063,2]
[319507567,1710813032049,-192.28,0.00014081,2]
[319507568,1710813032059,-216.52,0.00014088,2]
[319507569,1710813032069,-192.28,0.00014132,2]
[319507570,1710813032078,-259.32820831,0.00014137,2]
[319507571,1710813032088,-750.17860805,0.00014137,2]
[319507572,1710813032098,-373.69523763,0.00014137,2]
[319507573,1710813032108,-24757.55716737,0.00014137,2]
[319507574,1710813032118,-574.63965266,0.00014138,2]
[319507575,1710813032127,-248.54363465,0.00014138,2]
[319507576,1710813032136,-810.10277357,0.00014139,2]
[319507577,1710813032145,-1029.90576429,0.0001414,2]
[319507578,1710813032155,-178.31,0.00014149,2]
[319507579,1710813032164,-164.66,0.00014164,2]
[319507580,1710813032174,-192.28,0.00014182,2]
[319507581,1710813032183,-192.28,0.00014233,2]
[319507582,1710813032193,-164.66,0.00014265,2]
[319507583,1710813032202,-192.28,0.00014284,2]
[319507584,1710813032212,-370.63,0.00014289,2]
[319507585,1710813032222,-192.28,0.00014334,2]
[319507586,1710813032231,-192.28,0.00014385,2]
[319507587,1710813032240,-192.28,0.00014435,2]
[319507588,1710813032252,-192.28,0.00014486,2]
[319507589,1710813032261,-192.28,0.00014536,2]
[319507590,1710813032270,-581.594394,0.00014586,2]
[319507592,1710813032279,-192.28,0.00014587,2]
[319507594,1710813032288,-192.28,0.00014638,2]
[319507595,1710813032297,-192.28,0.00014688,2]
[319507596,1710813032306,-178.31,0.00014697,2]
[319507597,1710813032315,-162.95929418,0.00015049,2]
[319507598,1710813032324,-3260.0,0.00015054,2]
[319507599,1710813032333,-222.45,0.00015068,2]
[319507600,1710813032342,-1059.99382103,0.00015149,2]
[319507601,1710813032351,-1923.48227354,0.00015162,2]
[319507602,1710813032361,-204.35,0.00015166,2]
[319507603,1710813032370,-23900.0,0.00015171,2]
[319507604,1710813032380,-178.31,0.00015245,2]
[319507605,1710813032390,-359.10255313,0.00015251,2]
[319507606,1710813032400,-784.50604941,0.00015251,2]
[319507607,1710813032410,-4312.27030328,0.00015253,2]
[319507608,1710813032419,-904.70759491,0.00015358,2]
[319507609,1710813032430,-155.31010253,0.00015358,2]
[319507610,1710813032440,-2892.2782849,0.00015573,2]
[319507611,1710813032454,-680.37646957,0.00015672,2]
[319507612,1710813032463,-171073.56052631,0.00015672,2]
[319507613,1710813032476,-13204.875568,0.00015672,2]
[319507614,1710813032487,-495.0075,0.00015672,2]
[319507615,1710813032498,-3301.15,0.00015672,2]